Cogmind - Beta 15 @@@ ROGUE MODE // 2025.06.05 @ 21:06:19 Player: Mas5akr Result: Destroyed by S-27 Virus with Autogun Performance ------------- Evolutions (3) 1500 Regions Visited (7) 1400 Robots Destroyed (102) 510 Value Destroyed (3115) 3115 Prototype IDs (2) 40 Alien Tech Used (0) 0 Bonus (622) 622 TOTAL SCORE: 7187 Bonus ------- High Alert Combat Kills 270 Follower Combat Kills 152 Entered Garrisons 200 Cogmind --------- Core Integrity 0/700 Matter 146/300 Energy 136/350 System Corruption 3% Temperature Cool (0) Movement Core (100) Ox1 Location -7/Garrison Parts ------- > --- POWER (1) -------- (None) > --- PROPULSION (4) --- (None) > --- UTILITY (6) ------ High-capacity Battery System Shield System Shield > --- WEAPON (2) ------- (None) > --- INVENTORY (5) ---- Large Storage Unit Compact Matter Pod (150) Target Analyzer Shock Absorption System Remote Datajack Peak State ------------ > --- POWER ------------ Angular Momentum Engine > --- PROPULSION ------- Carbon-fiber Leg Carbon-fiber Leg Flexi-carbon Leg Flexi-carbon Leg > --- UTILITY ---------- Improved Cooling System Large Storage Unit Improved Light Armor Plating Reflective Plating Reflective Plating Hacking Suite > --- WEAPON ----------- Advanced Beam Cannon Heavy Particle Cannon > --- INVENTORY -------- Micro Nuclear Core Improved Cooling System Large Storage Unit High-capacity Battery Compact Matter Pod EM Disruption Field Hardlight Generator System Shield System Shield Field Laser Advanced Beam Cannon Heavy Particle Cannon Grenade Launcher Improved Grenade Launcher Improved Datajack [Rating: 48] Favorites ----------- Power Light Nuclear Core Engine Ion Engine Power Core Light Nuclear Core Propulsion Light Treads Treads Light Treads Leg Aluminum Leg Utility Large Storage Unit Device Improved Cooling System Storage Large Storage Unit Processor Signal Interpreter Hackware Hacking Suite Protection Improved Light Armor Plating Weapon Light Cannon Energy Gun Particle Gun Energy Cannon Advanced Beam Cannon Ballistic Gun Light Assault Rifle Ballistic Cannon Light Cannon Launcher Grenade Launcher Special Weapon Remote Datajack Build | -11 -10 -10 -10 -9 -8 -7 -7 ------- Run | Yrd Mat Min Exi Min Mat Fac Gar Slots Evolved 6 | . . . . . 4 2 . Power . | . . . . . . . . Propulsion 2 | . . . . . 2 . . Utility 4 | . . . . . 2 2 . Weapon . | . . . . . . . . Parts Attached 74 | 7 7 . 1 3 23 19 14 Power 11 | 1 1 . . 2 2 3 2 Engine 4 | 1 1 . . . 1 1 . Core 7 | . . . . 2 1 2 2 Reactor . | . . . . . . . . Propulsion 18 | 2 . . 1 . 7 5 3 Treads 3 | 2 . . 1 . . . . Leg 15 | . . . . . 7 5 3 Wheel . | . . . . . . . . Hover . | . . . . . . . . Flight . | . . . . . . . . Utility 22 | 1 2 . . . 7 6 6 Device 9 | . . . . . 4 2 3 Storage 4 | 1 1 . . . . 1 1 Processor 1 | . 1 . . . . . . Hackware 3 | . . . . . . 1 2 Protection 5 | . . . . . 3 2 . Artifact . | . . . . . . . . Weapon 23 | 3 4 . . 1 7 5 3 Energy Gun 7 | 2 . . . . 3 2 . Energy Cannon 7 | . . . . . 3 3 1 Ballistic Gun 1 | 1 . . . . . . . Ballistic Cannon 2 | . 2 . . . . . . Launcher 5 | . 2 . . 1 1 . 1 Special Weapon 1 | . . . . . . . 1 Impact Weapon . | . . . . . . . . Slashing Weapon . | . . . . . . . . Piercing Weapon . | . . . . . . . . Special Melee Weapon . | . . . . . . . . Unidentified Prototypes 2 | . . . . . 1 1 . Parts Lost 32 | . 2 . . . 5 8 17 Power 6 | . 1 . . . 1 1 3 Propulsion 9 | . . . . . 2 1 6 Utility 12 | . . . . . 2 5 5 Weapon 5 | . 1 . . . . 1 3 Highest Loss Streak 8 | . 1 . . . 3 3 8 To Critical Strikes . | . . . . . . . . Average Backups 12 | 2 8 14 15 15 14 14 10 Power 1 | 1 1 2 2 2 1 1 1 Propulsion 1 | . 1 2 1 . 1 . . Utility 6 | . 1 5 6 8 8 7 7 Weapon 3 | . 4 5 4 4 3 4 1 Tool/Special . | . . . . . . . . Unused Backups 19 | . . 1 . 3 6 3 6 Power 3 | . . . . 1 1 . 1 Propulsion 2 | . . . . 1 . 1 . Utility 11 | . . 1 . 1 4 . 5 Weapon 2 | . . . . . 1 1 . Tool/Special 1 | . . . . . . 1 . Average Slot Usage (%) 93 | . 95 100 100 100 93 95 73 Engine 6 | . 13 14 14 5 2 2 . Core 3 | . . . . 8 6 4 6 Treads 13 | . 28 28 28 28 4 . . Leg 14 | . . . . . 26 30 14 Device 7 | . . . . . 11 9 23 Storage 11 | . 14 14 14 14 9 7 13 Processor 7 | . 10 14 14 14 8 . . Protection 5 | . . . . . 5 21 . Energy Gun 4 | . 9 . . . 10 1 . Energy Cannon 5 | . . . . . 6 13 10 Ballistic Cannon 9 | . 12 28 28 28 1 . . Launcher 1 | . 4 . . . . . 2 Peak Build Rating 48 | 6 8 9 9 11 29 48 40 Average Rating 20 | 3 7 8 8 10 22 40 32 On Entrance 13 | . 6 8 9 9 11 29 35 Naked Turns . | . . . . . . . . Heaviest Build 58 | 14 31 31 31 31 43 58 46 Greatest Support 75 | 40 40 40 40 40 45 75 55 Greatest Overweight (x) 12 | . . . . . 1 1 12 Average Overweight (x) . | . . . . . . . 1 Largest Inventory Capacity 15 | 8 15 15 15 15 15 15 15 Average Capacity 14 | 6 11 15 15 15 15 15 14 Most Carried 15 | 5 14 15 15 15 15 15 14 Average Carried 12 | 2 8 14 14 15 14 14 10 Final Capacity 15 | 8 15 15 15 15 15 15 5 Final Carried 15 | 2 14 15 15 15 15 14 5 Class Distribution -------------------- 66% | Mutant 33% | Scavenger-Mutant Dominant Class ---------------- Mutant | -10/Materials Mutant | -10/Mines Mutant | -10/Exiles Mutant | -9/Mines Scavenger-Mutant | -8/Materials Mutant | -7/Factory Scavenger-Mutant | -7/Garrison Resources | -11 -10 -10 -10 -9 -8 -7 -7 ----------- Run | Yrd Mat Min Exi Min Mat Fac Gar Matter Collected 1906 | 232 143 500 . 104 348 295 284 Remotely . | . . . . . . . . Salvage Created 2806 | . 318 . . 20 925 1098 445 Parts 186 | . 26 . . 4 58 79 19 Haulers Intercepted 3 | . 2 . . . 1 . . Recyclers Shooed . | . . . . . . . . Parts Field Recycled . | . . . . . . . . Retrieved Matter . | . . . . . . . . Parts Self-Destructed . | . . . . . . . . Prevented . | . . . . . . . . Kills | -11 -10 -10 -10 -9 -8 -7 -7 ------- Run | Yrd Mat Min Exi Min Mat Fac Gar Combat Hostiles Destroyed 73 | . 10 . . 3 25 16 19 Guns 17 | . 1 . . . 16 . . Cannons 23 | . 2 . . 2 5 8 6 AOE 29 | . 7 . . 1 4 6 11 Classes Destroyed 17 | . 7 . . . 3 3 4 Worker 4 | . . . . . . 4 . Builder 13 | . . . . . 2 11 . Tunneler 1 | . 1 . . . . . . Hauler 3 | . 2 . . . 1 . . Recycler 3 | . 1 . . . . 2 . Operator 3 | . 1 . . . 1 1 . Watcher 5 | . 2 . . . 2 1 . Swarmer 25 | . 6 . . 3 10 . 6 Grunt 25 | . 4 . . . 9 7 5 Brawler 1 | . . . . . 1 . . Duelist 1 | . . . . . . . 1 Protector 1 | . . . . . . . 1 Sentry 8 | . . . . . 5 2 1 Demolisher 1 | . . . . . . . 1 Specialist 4 | . . . . . . 4 . Programmer 4 | . . . . . . 3 1 Assembled 3 | . . . . . . . 3 Best Kill Streak 25 | . 5 . . 3 8 25 14 Combat Bots Only 14 | . 3 . . 3 5 7 14 Max Kills in Single Turn 15 | . 3 . . 2 3 15 2 Gunslinging . | . . . . . . . . Exploded 4 | . 3 . . 1 2 4 2 Melee . | . . . . . . . . Uniques/NPCs Destroyed . | . . . . . . . . Combat | -11 -10 -10 -10 -9 -8 -7 -7 -------- Run | Yrd Mat Min Exi Min Mat Fac Gar Hostile Shots Fired 510 | . 38 . . 17 119 193 143 Missed 170 | . 10 . . 7 40 71 42 Hits 340 | . 28 . . 10 79 122 101 Melee 5 | . . . . . 1 . 4 Projectile 335 | . 28 . . 10 78 122 97 AOE 7 | . . . . . . 1 6 Critical Strikes 12 | . 1 . . . 5 2 4 Part Disruptions 1 | . . . . . . 1 . Damage Taken 4999 | . 501 . . 129 948 1760 1661 Core 846 | . 30 . . 7 99 100 610 Absorbed by Shields . | . . . . . . . . Redirected to Shielding 57 | . . . . . . 57 . Ignored by Resistances 44 | . . . . . . 36 8 Core Remaining (%) 89 | 100 . . . 85 82 . . Volleys Fired 219 | . 33 . . 6 76 53 51 Largest 2 | . 2 . . 2 2 2 2 Hottest 143 | . 90 . . 60 136 143 143 Shots Fired 411 | . 66 . . 12 152 105 76 Gun 168 | . 32 . . . 121 15 . Cannon 202 | . 22 . . 11 23 90 56 Launcher 41 | . 12 . . 1 8 . 20 Special . | . . . . . . . . Kinetic 38 | . 25 . . 11 2 . . Thermal 314 | . 16 . . . 137 105 56 Explosive 41 | . 12 . . 1 8 . 20 Electromagnetic 18 | . 13 . . . 5 . . Robot Hit Streak 16 | . 5 . . 4 14 16 8 Robot Miss Streak 6 | . 6 . . 2 3 4 3 Penetration Max . | . . . . . . . . Secondary Targets 3 | . 1 . . . 2 . . Max Gunslinging Chain 1 | . 1 . . . 1 . . Shots Hit Robots 236 | . 34 . . 7 94 62 39 Core Hits 167 | . 29 . . 6 55 41 36 Critical Kills 4 | . . . . . . 2 2 Critical Parts Destroyed . | . . . . . . . . Critical Strikes 12 | . 2 . . 1 4 3 2 Burn 6 | . 1 . . . 4 1 . Meltdown 4 | . . . . . . 2 2 Blast 1 | . . . . 1 . . . Corrupt 1 | . 1 . . . . . . Melee Attacks . | . . . . . . . . Impact . | . . . . . . . . Slashing . | . . . . . . . . Piercing . | . . . . . . . . Sneak Attacks . | . . . . . . . . Combat Hostiles . | . . . . . . . . Follow-up Attacks . | . . . . . . . . Damage Inflicted 8739 | . 952 . . 270 1895 3948 1674 Guns 1551 | . 242 . . . 1243 66 . Cannons 2952 | . 207 . . 171 351 1425 798 Explosions 4236 | . 503 . . 99 301 2457 876 Melee . | . . . . . . . . Ramming . | . . . . . . . . Kinetic 392 | . 221 . . 171 . . . Thermal 3953 | . 135 . . . 1529 1491 798 Explosive 4213 | . 480 . . 99 301 2457 876 Electromagnetic 181 | . 116 . . . 65 . . Impact . | . . . . . . . . Slashing . | . . . . . . . . Piercing . | . . . . . . . . Highest Corruption 3 | . . . . . . 3 3 Average Corruption 2 | . . . . . . 2 3 Corruption Purged . | . . . . . . . . Corruption Blocked . | . . . . . . . . Effects 18 | . . . . . . 5 13 Message Errors 2 | . . . . . . 1 1 Matter Fused 6 | . . . . . . 1 5 Heat Flow Errors 1 | . . . . . . 1 . Energy Discharges 4 | . . . . . . 2 2 Data Loss (minor) 3 | . . . . . . . 3 Data Loss (major) 1 | . . . . . . . 1 Misfires 1 | . . . . . . . 1 Overload Shots . | . . . . . . . . Overflow Damage 427 | . 28 . . . . 310 89 Projectiles 84 | . . . . . . 21 63 Explosions 343 | . 28 . . . . 289 26 Melee . | . . . . . . . . Knockbacks 7 | . 2 . . 5 . . . Impact . | . . . . . . . . Kinetic 5 | . 2 . . 3 . . . Secondary 2 | . . . . 2 . . . Self-Inflicted Damage 235 | . 146 . . . . 68 21 Shots 6 | . 4 . . . . 1 1 Rammed . | . . . . . . . . Targets Rammed . | . . . . . . . . Kicked . | . . . . . . . . Crushed . | . . . . . . . . Highest Temperature 300 | . 247 . . 24 144 209 300 Average Temperature 62 | . 92 . . 11 41 50 88 Received Heat Transfer 1359 | . 168 . . 54 378 405 354 Siege Activations . | . . . . . . . . Martial Activations . | . . . . . . . . Shielding Activations . | . . . . . . . . Robots Disrupted . | . . . . . . . . Combat Hostiles . | . . . . . . . . Robots Corrupted . | . . . . . . . . Combat Hostiles . | . . . . . . . . Parts Fried 1 | . . . . . 1 . . Impact Corruptions . | . . . . . . . . Robots Melted 5 | . . . . . . 3 2 Combat Hostiles 4 | . . . . . . 2 2 Parts Melted 15 | . 1 . . . 5 5 4 Heat Transferred 7931 | . 457 . . . 3700 2479 1295 Parts Sabotaged . | . . . . . . . . Parts Stolen . | . . . . . . . . Parts Stripped . | . . . . . . . . Power Chain Reactions 1 | . 1 . . . . . . Alert | -11 -10 -10 -10 -9 -8 -7 -7 ------- Run | Yrd Mat Min Exi Min Mat Fac Gar Maximum Alert Level 3 | . . . . . 1 2 3 Low Security (%) 71 | 100 100 100 . 100 51 91 . Level 1 14 | . . . . . 48 . . Level 2 12 | . . . . . . 7 83 Level 3 2 | . . . . . . . 16 Level 4 . | . . . . . . . . Level 5 . | . . . . . . . . High Security . | . . . . . . . . Max Security . | . . . . . . . . Peak Influence 818 | . 188 22 . 166 348 674 818 Initial 462 | . . 22 . . 20 129 462 Average 169 | . 60 8 . 59 187 84 597 Influence Increases 2863 | . 374 . . 246 795 950 498 Destroy 0b10 Robot/C 1500 | . 200 . . 180 500 320 300 Destroy 0b10 Robot/NC 165 | . 35 . . . 30 95 5 Destroy Leader 306 | . 48 . . 30 116 92 20 Allied During Kill 24 | . . . . 24 . . . Successful Hack 49 | . . . . . 35 14 . Disable Machine 390 | . 15 . . . 30 345 . Anti-Garrison Action 100 | . . . . . . . 100 Destroy Structure 239 | . 61 . . 12 24 69 73 Lose Combat Pursuer 90 | . 15 . . . 60 15 . Influence Decreases 2073 | . 317 57 . 192 564 575 368 Entered New Map 423 | . . 35 . . 34 156 198 Time Decay 1310 | . 297 22 . 152 480 359 . Lost Part 300 | . 20 . . . 50 60 170 Lost Ally 40 | . . . . 40 . . . Squads Dispatched 11 | . 1 . . . 1 9 . Investigation 2 | . . . . . . 2 . Extermination 2 | . . . . . . 2 . Reinforcement 6 | . 1 . . . 1 4 . Assault . | . . . . . . . . Garrison 1 | . . . . . . 1 . Intercept . | . . . . . . . . Searches Triggered . | . . . . . . . . Construction Impeded 1 | . . . . . . 1 . Haulers Reinforced . | . . . . . . . . Active Scanning Responses . | . . . . . . . . Cargo Convoy Interrupts . | . . . . . . . . Stealth | -11 -10 -10 -10 -9 -8 -7 -7 --------- Run | Yrd Mat Min Exi Min Mat Fac Gar Distress Signals 9 | . 2 . . . 2 5 . Communications Jammed . | . . . . . . . . Distress Signals . | . . . . . . . . Times Spotted 114 | . 13 . . 9 40 29 23 Peak Tracking Total 9 | . 4 . . 5 5 9 6 Tactical Retreats 5 | . 1 . . . 3 1 . Traps | -11 -10 -10 -10 -9 -8 -7 -7 ------- Run | Yrd Mat Min Exi Min Mat Fac Gar Traps Triggered 3 | . . . . . 1 1 1 Indirectly . | . . . . . . . . Trap Hack Attempts . | . . . . . . . . Triggered . | . . . . . . . . Disarmed . | . . . . . . . . Reprogrammed . | . . . . . . . . Reused . | . . . . . . . . Traps Extracted . | . . . . . . . . Installed . | . . . . . . . . Triggered . | . . . . . . . . Machines | -11 -10 -10 -10 -9 -8 -7 -7 ---------- Run | Yrd Mat Min Exi Min Mat Fac Gar Machines Disabled 26 | . 1 . . . 2 23 . Max in Single Turn 7 | . 1 . . . 1 7 . Garrison Relay 1 | . . . . . . . 1 Machines Repaired . | . . . . . . . . Machines Dismantled . | . . . . . . . . Machines Sabotaged . | . . . . . . . . Overloaded Fab Kills . | . . . . . . . . Hacking | -11 -10 -10 -10 -9 -8 -7 -7 --------- Run | Yrd Mat Min Exi Min Mat Fac Gar Machines Accessed 16 | . 4 . 1 . 6 5 . Terminals 10 | . 4 . . . 6 . . Fabricators 2 | . . . . . . 2 . Repair Stations . | . . . . . . . . Recycling Units . | . . . . . . . . Scanalyzers 2 | . . . . . . 2 . Garrison Access 1 | . . . . . . 1 . Total Hacks 41 | . 5 . 7 . 15 14 . Successful 21 | . . . 7 . 6 8 . Failed 20 | . 5 . . . 9 6 . Catastrophic 4 | . 2 . . . 1 1 . Database Lockouts . | . . . . . . . . Manual 11 | . 5 . . . 6 . . Terminals 20 | . 5 . . . 15 . . Fabricators 2 | . . . . . . 2 . Repair Stations . | . . . . . . . . Recycling Units . | . . . . . . . . Scanalyzers 11 | . . . . . . 11 . Garrison Access 1 | . . . . . . 1 . Terminal Hacks 13 | . . . 7 . 6 . . Record 7 | . . . 7 . . . . Branch Access Points 2 | . . . . . 2 . . Emergency Access Points 1 | . . . . . 1 . . Terminal Index 1 | . . . . . 1 . . Registered Components 1 | . . . . . 1 . . Registered Prototypes 1 | . . . . . 1 . . Fabricator Hacks 2 | . . . . . . 2 . Network Status 1 | . . . . . . 1 . Build 1 | . . . . . . 1 . Repair Station Hacks . | . . . . . . . . Recycling Unit Hacks . | . . . . . . . . Scanalyzer 5 | . . . . . . 5 . Insert Component 2 | . . . . . . 2 . Analyze 3 | . . . . . . 3 . Garrison Access Hacks 1 | . . . . . . 1 . Unlock Access 1 | . . . . . . 1 . Unauthorized Hacks . | . . . . . . . . Terminals . | . . . . . . . . Fabricators . | . . . . . . . . Repair Stations . | . . . . . . . . Recycling Units . | . . . . . . . . Scanalyzers . | . . . . . . . . Garrison Access . | . . . . . . . . Data Cores Recovered . | . . . . . . . . Used . | . . . . . . . . Hacking Detections 12 | . 4 . . . 6 2 . Full Trace Events 1 | . . . . . . 1 . Feedback Events . | . . . . . . . . Feedback Blocked . | . . . . . . . . Robot Schematics Acquired . | . . . . . . . . Robots Built . | . . . . . . . . Authchips . | . . . . . . . . Time . | . . . . . . . . Total Robot Build Rating . | . . . . . . . . Part Schematics Acquired 2 | . . . . . . 2 . Parts Built 2 | . . . . . . 2 . Authchips . | . . . . . . . . Time 106 | . . . . . . 106 . Total Part Build Rating 12 | . . . . . . 12 . Parts Repaired . | . . . . . . . . Time . | . . . . . . . . Parts Recycled . | . . . . . . . . Recycled Matter . | . . . . . . . . Retrieved Matter . | . . . . . . . . Retrieved Components . | . . . . . . . . Parts Scanalyzed 2 | . . . . . . 2 . Part Schematics Acquired 2 | . . . . . . 2 . Parts Damaged . | . . . . . . . . Bothacking | -11 -10 -10 -10 -9 -8 -7 -7 ------------ Run | Yrd Mat Min Exi Min Mat Fac Gar Used RIF Installer . | . . . . . . . . Robots Hacked . | . . . . . . . . Non-combat . | . . . . . . . . Combat . | . . . . . . . . Robot Hacks Applied . | . . . . . . . . Relay Couplers Released 8 | . . . . . . . 8 Machine Destruction 4 | . . . . . . . 4 Programmers 4 | . . . . . . . 4 Fabnet Peak Effective % . | . . . . . . . . Robots Rewired . | . . . . . . . . Allies Hacked . | . . . . . . . . Hacks Repelled . | . . . . . . . . Allies | -11 -10 -10 -10 -9 -8 -7 -7 -------- Run | Yrd Mat Min Exi Min Mat Fac Gar Total Allies 3 | . . . . 3 . . . Largest Group 3 | . . . . 3 1 . . Highest-Rated Group 40 | . . . . 40 16 . . Highest-Rated Ally 16 | . . . . 16 16 . . Total Orders . | . . . . . . . . Ally Attacks 19 | . . . . 18 1 . . Total Damage 214 | . . . . 200 14 . . Kills 6 | . . . . 6 . . . Allies Corrupted . | . . . . . . . . Allies Melted . | . . . . . . . . Intel | -11 -10 -10 -10 -9 -8 -7 -7 ------- Run | Yrd Mat Min Exi Min Mat Fac Gar Active Infowar (turns) . | . . . . . . . . Robot Analysis Total . | . . . . . . . . Derelict Logs Recovered 2 | . . . . 2 . . . Drone Launches . | . . . . . . . . Drone Recoveries . | . . . . . . . . Exploration | -11 -10 -10 -10 -9 -8 -7 -7 ------------- Run | Yrd Mat Min Exi Min Mat Fac Gar Turns Passed 5408 | 45 1079 78 693 468 1413 1040 592 Spaces Moved 3008 | 32 587 48 431 276 810 614 210 Core 40 | 17 . . . . . . 23 Treads 1483 | 15 587 48 431 276 126 . . Legs 1485 | . . . . . 684 614 187 Wheels . | . . . . . . . . Hover . | . . . . . . . . Flight . | . . . . . . . . Fastest Speed 50 | 50 160 160 160 160 120 120 100 Average Speed 146 | 101 160 160 160 160 129 130 176 Slowest Speed 650 | 160 160 160 160 160 190 190 650 Overloaded Moves . | . . . . . . . . Propulsion Burnouts . | . . . . . . . . Robots Hopped . | . . . . . . . . Potential Cave-ins . | . . . . . . . . Cave-ins Triggered . | . . . . . . . . Exploration Rate (%) 41 | 3 93 12 80 52 45 13 32 Regions Visited 7 Branch Regions 3 Pre-discovered Areas 2 | . . . 1 1 . . . Known Exits Taken 6 | . 1 1 1 1 1 1 . Unknown Exits Taken 1 | 1 . . . . . . . Scrap Searched 1 | . . . . 1 . . . Spaces Dug 15 | . 13 . . . . . 2 Terrain Destroyed 246 | . 60 . . 12 30 77 67 Melee . | . . . . . . . . Projectile 1 | . . . . . . 1 . AOE 245 | . 60 . . 12 30 76 67 Terrain Rammed . | . . . . . . . . Walls Destroyed . | . . . . . . . . Machines Disabled . | . . . . . . . . Actions | -11 -10 -10 -10 -9 -8 -7 -7 --------- Run | Yrd Mat Min Exi Min Mat Fac Gar Total 3647 | 43 660 50 435 293 1028 766 372 Wait 178 | . 6 . . . 76 27 69 Move 3002 | 31 586 47 430 275 809 614 210 Hop . | . . . . . . . . Pick Up 72 | 5 17 2 2 3 18 16 9 Fast Attach 22 | 3 1 . . . 11 5 2 Attach 38 | 3 5 . . . 6 10 14 Detach 2 | . . . . . . 1 1 Swap 46 | 1 8 . 1 4 10 15 7 Drop 63 | . 4 1 2 5 22 25 4 Fire 219 | . 33 . . 6 76 53 51 Melee . | . . . . . . . . Ram . | . . . . . . . . Kick . | . . . . . . . . Crush . | . . . . . . . . Escape Stasis 5 | . . . . . . . 5 Rewire . | . . . . . . . . Trap . | . . . . . . . . Miscellaneous . | . . . . . . . . Route ------- -11/Scrapyard -10/Materials (discovered 4 exits: *Mat x3 / *Min) -10/Mines -10/Exiles (discovered 2 exits: *Min x2) -9/Mines -8/Materials -7/Factory -7/Garrison History --------- Turn | Location | Event 10 | -11/Scrapyard | Discovered new exit (range 16) 46 | -11/Scrapyard | Entered Materials 47 | -10/Materials | Met a group of wandering Federalists 315 | -10/Materials | Build established: Mutant 317 | -10/Materials | Discovered new exit (range 10) 610 | -10/Materials | Discovered new exit (range 12) 645 | -10/Materials | Identified exit to Materials 883 | -10/Materials | Discovered exit to Materials (range 10) 1106 | -10/Materials | Discovered new exit (range 13) 1124 | -10/Materials | Identified exit to Mines 1125 | -10/Materials | Entered Mines 1155 | -10/Mines | Met a Derelict bent on vengeance 1195 | -10/Mines | Deemed a non-threat by the Exiles lab entrance 1197 | -10/Mines | Discovered new exit (range 5) 1202 | -10/Mines | Identified exit to Exiles 1203 | -10/Mines | Entered Exiles 1234 | -10/Exiles | Discovered new exit (range 14) 1280 | -10/Exiles | Met 8R-AWN 1307 | -10/Exiles | Met EX-HEX 1458 | -10/Exiles | Met EX-BIN 1477 | -10/Exiles | Met EX-DEC 1483 | -10/Exiles | Learned location of Zion (-6) 1566 | -10/Exiles | Visited The Gauntlet 1875 | -10/Exiles | Discovered new exit (range 14) 1894 | -10/Exiles | Identified exit to Mines 1896 | -10/Exiles | Entered Mines 1956 | -9/Mines | Learned Materials terminal intel 1994 | -9/Mines | Assisted by bots powering up and referring to "LRC-V3" 2231 | -9/Mines | Discovered new exit (range 6) 2239 | -9/Mines | Identified exit to Materials 2364 | -9/Mines | Entered Materials 2364 | -8/Materials | Accompanied by 1 ally 2364 | -8/Materials | Evolved 4 slots: Propulsion x2, Utility x2 2365 | -8/Materials | Loaded intel: 12 terminal locations 2828 | -8/Materials | Lost 3 parts (1p1n1u) 2980 | -8/Materials | Build established: Scavenger-Mutant 3556 | -8/Materials | Discovered new exit (range 4) 3561 | -8/Materials | Identified exit to Factory 3777 | -8/Materials | Entered Factory 3777 | -7/Factory | Evolved 2 slots: Utility x2 3844 | -7/Factory | Build established: Mutant 4222 | -7/Factory | Fabricated Neutrino Core (x2) 4677 | -7/Factory | Build established: Scavenger-Mutant 4745 | -7/Factory | Garrison activated, responded to threat 4754 | -7/Factory | Lost 3 parts (1p2u) 4759 | -7/Factory | Destroyed 7 combat bots 4817 | -7/Factory | Identified exit to Garrison 4817 | -7/Factory | Entered Garrison 5019 | -7/Garrison | Spotted B-75 Beast 5067 | -7/Garrison | Assembled breached garrison interior 5154 | -7/Garrison | Lost 7 parts (2p2n2u1w) 5361 | -7/Garrison | Core integrity fell below 50% 5390 | -7/Garrison | Core integrity fell below 20% 5393 | -7/Garrison | Destroyed 14 combat bots 5396 | -7/Garrison | Lost 8 parts (1p3n2u2w) 5409 | -7/Garrison | Destroyed by S-27 Virus with Autogun Last Messages --------------- D-53 Grenadier destroyed. Destroyed Asb. F-torch. Destroyed Asb. Hover Unit. as-06407 suffers critical hit (Meltdown). Imp. Cooling System destroyed. Adv. Beam Cannon destroyed. Destroyed Asb. Hover Unit. as-54909 destroyed. Destroyed Tesla Rifle. Imp. Heat Sink melted. P-70 Sage destroyed. The unstable cave ceiling collapses. Dropped Hvy. Particle Cannon. Dropped Lrg. Storage Unit. Acquired Relay Coupler [Behemoth]. Relay Coupler [Behemoth] fries itself. Acquired Remote Datajack. System corrupted: Matter fused (-8). Dropped Imp. Heat Sink. Weapon Cycler destroyed. Map ----- +----------------------------------------------------+ | ????????????????????????????????????????????# | | ????????????????????????????????????????????# | | ????????????????????????????????????????????? | | ??????????????????????????????????????????????#++# | | ??????????????????????????????????????????????# # | | ??????????????????????????????????????????????# # | | ??????????????????????????????????????????????# # | | ??????????????????????????????????????????????# # | | ??????????????????????????????????????????????# # | | ????????????????????????????????????????????### # | | ??????????????????????? ??????????????????# # # | | ??????????????????????# ss??????????????????# | | ??????????????????????# ??????????????????# | | ??????????????????????# ??????????????????# # | | ??????????????????????# ??????????????????# ## | | ??????????????????????# ????????####??????# ## | | ??????????????????????# ???????? #??????# ## | | ??????????????????????# #??????? #??????#" ### | | ??????????????????????# #???????# #???####%"### | | ??????????????????????# #???????# #???# #" | | ??????????????????????# #???????# #???# ## ### | | ??????????????????????# #???????# #???#|## #?? | | ??????????????????????# #???????# #####!## #?? | | ??????????????????????# #????#### ##%*!%## #?? | | ??????????????????????# ###### # !! # ### | | ??????????????????????# @ !!=] | | ??????????????????????# !* | | ??????????????????????# a % | | ??????????????????????########### a # | | ????????????????????????????????## # # %## | | ???????????????????????????????# % %= | | ???????????????????????????????# [ | | ???????????????????????????????# % % | | ???????????????????????????????# | | ???????????????????????????????### # # ## | | ????????????????????????????????# %[ # # #? | | ???????????????????????????????? ? | | ???????????????????????????????? % ? | | ???????????????????????????????? | | ???????????????????????????????? # ### ####### | | ?????????????????????????????????#? ??? ??????? | | ?????????????????????????????????????????????????? | | ?????????????????????????????????????????????????? | | ?????????????????????????????????????????????????? | | ?????????????????????????????????????????????????? | | ?????????????????????????????????????????????????? | | ?????????????????????????????????????????????????? | | ?????????????????????????????????????????????????? | | ?????????????????????????????????????????????????? | | ?????????????????????????????????????????????????? | +----------------------------------------------------+ Best States ------------- Heat Dissipation 61 Energy Generation 19 Energy Capacity 410 Matter Stores 300 Matter Capacity 300 Sight Range 16 Terrain Scan Density 10 Armor Coverage 450 Resistance: TH 10 Resistance: EX 25 Propulsion Shielding 33 Weapon Cycling 15 Evasion (%) 55 Recoil Reduction 2 Offensive Hacking 10 Defensive Hacking 20 Item Schematics ----------------- Imp. Cooling System | -7/Factory | Scanalyzed System Shield | -7/Factory | Scanalyzed Robot Schematics ------------------ None Fabricated ------------ Neutrino Core | x2 | -7/Factory | Preloaded Repaired ---------- Nothing Alien Tech Used ----------------- None Achievements -------------- None Challenges ------------ None Game ------ Seed GyrokineticSpliceExpander Manual? 0 Play Time 00:53:52 Cumulative 45.0 hours Start 2025.06.05 @ 19:40:21 End 2025.06.05 @ 21:06:19 Sessions 1 Manual Loads 0 Difficulty Rogue Special Mode None Game No. 43 Rogue 43 Adventurer 0 Explorer 0 Win Type - Total 1 Types 1/0/0/0/0/0/0/0/0/0 Lore% 25 Gallery% 37 Achievement% 40 Wizard Run 0 Options --------- Layout 1 ASCII 0 Keyboard 0 Movement Mouse Keybinds 0 Fullscreen 1 Font 24/Smallcaps Map View 50x35 Zoom Use 0% Tactical HUD 0 Map Filters NONE Filters NONE Steam 1 RUN: 7174dbe9-6a8e-49de-895a-b2f93eaabe21